[Event "1st Welsh Masters 2019"]
[Site "Bridgend"]
[Date "2019.08.30"]
[Round "9.2"]
[White "Kett, Tim"]
[Black "Varley, Peter"]
[Result "0-1"]
[ECO "C37"]
[WhiteElo "2245"]
[BlackElo "2171"]
[Annotator "NA"]
[PlyCount "70"]
[EventDate "2019.08.26"]
[EventType "tourn"]
[EventCountry "WLS"]
[SourceTitle "playchess.com"]
[Source "ChessBase"]
[SourceQuality "1"]
[TimeControl "5400+30"]

{[%evp 8,62,2,-29,-29,-33,-6,-13,15,-8,10,18,6,18,10,32767,0,0,10,0,45,0,110,32767,-109,-118,-117,-130,-86,-118,0,0,0,0,0,0,32767,32767,32767,32767,32767,32767,32767,32767,32767,32767,32767,32767,32767,32767,32767,32767,32767,32767,32767,-482,-538]} 1. e4 {[%emt 0:00:00]} e5 {[%emt 0:00:00]} 2. f4 {[%emt 0:00:00]} exf4 {[%emt 0:00:00]} 3. Nf3 {[%emt 0:00:00]} g5 {[%emt 0:00:00]} 4. Nc3 {[%emt 0:00:48]} Bg7 {[%emt 0:02:03]} 5. d4 {[%emt 0:00:59]} d6 {[%emt 0:00:55]} 6. g3 {[%emt 0:02:55] C37: King's Gambit Accepted: Muzio Gambit} g4 {[%emt 0:01:31]} 7. Nh4 {[%emt 0:00:44]} f3 {[%emt 0:00:44]} 8. Be3 {[%emt 0:02:52]} Nc6 {[%emt 0:03:28]} 9. Qd2 {[%emt 0:00:40]} h5 {[%emt 0:13:47]} 10. O-O-O {[%emt 0:01:04]} a6 $146 {[%emt 0:06:43]} ({Predecessor:} 10... Nge7 11. h3 Bd7 12. Bc4 Be6 {1-0 (22) Ponomariov,R (2712)-Dominguez Perez,L (2732) Huaian 2016}) 11. Bc4 {[%emt 0:04:39]} Na5 {[%emt 0:03:24]} 12. Bd3 {[%emt 0:00:58]} b5 {[%emt 0:05:25]} 13. b3 {[%emt 0:06:58]} c6 {[%emt 0:02:07]} 14. Rhe1 {[%emt 0:00:54]} (14. e5 $5) 14... Kf8 {[%emt 0:01:13]} (14... Nb7 $11) 15. Bg5 {[%emt 0:08:11] [#]} Qxg5 $1 {[%emt 0:05:48]} 16. Qxg5 {[%emt 0:00:15]} Bh6 {[%emt 0:00:04]} 17. Qf4 {[%emt 0:07:46]} Bxf4+ {[%emt 0:01:01]} 18. gxf4 {[%emt 0:00:06]} c5 {[%emt 0:11:27]} (18... Nb7 $17 19. e5 Ne7) 19. dxc5 {[%emt 0:04:41]} dxc5 {[%emt 0:00:06]} 20. e5 {[%emt 0:00:35]} Bb7 {[%emt 0:06:01]} 21. Be4 {[%emt 0:03:03]} Rh6 {[%emt 0:06:15]} 22. Rd7 {[%emt 0:02:36]} Bc6 {[%emt 0:09:15]} 23. Bxc6 {[%emt 0:02:20]} Nxc6 {[%emt 0:01:08]} 24. Ne4 {[%emt 0:05:24]} Rd8 {[%emt 0:07:06]} 25. Nxc5 {[%emt 0:03:18]} Rxd7 {[%emt 0:02:21]} 26. Nxd7+ {[%emt 0:00:06]} Ke8 {[%emt 0:00:25]} 27. Nc5 {[%emt 0:00:40]} Nd4 {[%emt 0:00:24]} 28. Kd2 {[%emt 0:09:03]} Rc6 {[%emt 0:01:08]} 29. b4 {[%emt 0:01:50]} Ne7 {[%emt 0:01:51]} 30. Kd3 {[%emt 0:03:18]} Ne6 {[%emt 0:00:18]} 31. Nxe6 {[%emt 0:02:29]} fxe6 $19 {[%emt 0:00:07]} (31... Rxe6 $2 32. f5 $19) 32. a4 {[%emt 0:05:51]} Rc4 {[%emt 0:00:53]} 33. axb5 {[%emt 0:00:09]} axb5 {[%emt 0:00:05]} 34. h3 {[%emt 0:02:08]} Rxf4 {[%emt 0:00:36]} 35. hxg4 {[%emt 0:00:06]} hxg4 {[%emt 0:00:13]} 0-1

[Event "1st Welsh Masters 2019"]
[Site "Bridgend"]
[Date "2019.08.30"]
[Round "9.3"]
[White "Willow, Jonah B"]
[Black "Waddington, Mike P"]
[Result "1-0"]
[ECO "B00"]
[WhiteElo "2326"]
[BlackElo "2023"]
[Annotator "NA"]
[PlyCount "63"]
[EventDate "2019.08.26"]
[EventType "tourn"]
[EventCountry "WLS"]
[SourceTitle "playchess.com"]
[Source "ChessBase"]
[SourceQuality "1"]
[TimeControl "5400+30"]

{[%evp 8,43,52,47,63,15,32767,32767,19,4,18,15,7,28,51,56,60,44,46,45,32767,-23,32767,-43,-42,-22,-7,0,-2,0,2,0,53,41,90,112,87,103]} 1. e4 {[%emt 0:00:00]} e6 {[%emt 0:00:00]} 2. d4 {[%emt 0:00:02]} b6 {[%emt 0:00:00]} 3. Bd3 {[%emt 0:00:30]} Bb7 {[%emt 0:00:14]} 4. Nf3 {[%emt 0:00:13]} c5 {[%emt 0:01:03]} 5. c3 {[%emt 0:00:26]} Nf6 {[%emt 0:00:16]} 6. Qe2 {[%emt 0:00:57]} Be7 {[%emt 0:00:20]} 7. h4 {[%emt 0:01:27] B00: Queen's Fianchetto Defence, Nimzowitsch Defence} (7. O-O d5 8. e5 Nfd7 9. Nbd2 Qc8 10. Re1 cxd4 11. cxd4 Ba6 12. Nf1 Bxd3 13. Qxd3 Qa6 14. Qd1 Nc6 15. a3 {1-0 (29) Vitiugov,N (2725)-Edouard,R (2636) Berlin 2015}) 7... Nc6 {[%emt 0:00:45]} 8. a3 {[%emt 0:02:34]} Na5 {[%emt 0:00:29]} 9. Nbd2 {[%emt 0:00:37]} c4 {[%emt 0:01:00]} 10. Bc2 {[%emt 0:01:39]} b5 $146 {[%emt 0:00:58]} ({Predecessor:} 10... Qc7 11. e5 Nd5 12. Ne4 O-O-O 13. Bg5 f6 14. Be3 f5 {½-½ (35) Vidic,T (1707)-Bucinskas,L Mureck 2010}) 11. Nf1 {[%emt 0:04:58]} Qc7 {[%emt 0:02:50]} 12. Ng3 {[%emt 0:04:32]} a6 {[%emt 0:09:14]} 13. h5 {[%emt 0:04:27]} h6 {[%emt 0:04:13]} 14. Bd2 {[%emt 0:00:51]} Nb3 {[%emt 0:25:07]} 15. Rd1 {[%emt 0:05:42]} Nxd2 {[%emt 0:03:07]} 16. Qxd2 {[%emt 0:02:32]} d5 {[%emt 0:03:03]} 17. e5 {[%emt 0:01:13]} Ne4 {[%emt 0:00:39]} 18. Qf4 {[%emt 0:05:32]} Nxg3 {[%emt 0:01:50]} 19. Qxg3 {[%emt 0:00:49]} Bf8 {[%emt 0:00:34]} 20. O-O {[%emt 0:00:38]} Qe7 {[%emt 0:05:34]} 21. Nh2 {[%emt 0:02:35]} O-O-O $16 {[%emt 0:01:42]} 22. f4 {[%emt 0:00:27]} Re8 {[%emt 0:16:39]} 23. f5 {[%emt 0:03:11]} Qg5 {[%emt 0:04:03]} 24. Qxg5 {[%emt 0:04:45]} hxg5 {[%emt 0:00:05]} 25. fxe6 {[%emt 0:00:13]} fxe6 {[%emt 0:00:39]} 26. Bg6 {[%emt 0:00:12]} Rd8 {[%emt 0:01:14]} 27. Rf7 {[%emt 0:00:26]} Rd7 {[%emt 0:00:59]} 28. Rdf1 {[%emt 0:00:10]} Rxf7 {[%emt 0:00:06]} 29. Rf2 Rf6 30. Rxf6 {[%emt 0:00:35]} a5 {[%emt 0:01:15]} 31. Rf7 {[%emt 0:01:18]} b4 {[%emt 0:00:13]} 32. Nf3 {[%emt 0:00:13]} 1-0

[Event "1st Welsh Masters 2019"]
[Site "Bridgend"]
[Date "2019.08.30"]
[Round "9.4"]
[White "Toczek, Grzegorz"]
[Black "Taylor, Adam C"]
[Result "1-0"]
[ECO "D42"]
[WhiteElo "2246"]
[BlackElo "2402"]
[Annotator "NA"]
[PlyCount "81"]
[EventDate "2019.08.26"]
[EventType "tourn"]
[EventCountry "WLS"]
[SourceTitle "playchess.com"]
[Source "ChessBase"]
[SourceQuality "1"]
[TimeControl "5400+30"]

1. e4 {[%emt 0:00:00]} c6 {[%emt 0:00:00]} 2. d4 {[%emt 0:00:08]} d5 {[%emt 0:00:00]} 3. exd5 {[%emt 0:00:06]} cxd5 {[%emt 0:00:00]} 4. c4 {[%emt 0:00:06]} Nf6 {[%emt 0:00:00]} 5. Nc3 {[%emt 0:00:04]} Nc6 {[%emt 0:00:00]} 6. Nf3 {[%emt 0:02:27]} e6 {[%emt 0:00:00]} 7. cxd5 {[%emt 0:00:44]} Nxd5 {[%emt 0:00:35]} 8. Bd3 {[%emt 0:03:53]} Be7 {[%emt 0:04:22]} 9. O-O {[%emt 0:01:11]} O-O {[%emt 0:00:34]} 10. Re1 {[%emt 0:01:50]} Re8 {[%emt 0:15:29]} 11. a3 {[%emt 0:06:08] D42: Queen's Gambit Declined: Semi-Tarrasch: 5 cxd5 Nxd5 6 e3 Nc6 7 Bd3} Nxc3 {[%emt 0:04:50]} 12. bxc3 {[%emt 0:00:13]} b6 {[%emt 0:00:19] [#]} 13. Bb5 $146 {[%emt 0:03:20]} (13. Qc2 $1 $16) ({Predecessor:} 13. h4 Bb7 14. Ng5 Bxg5 15. Bxg5 Qd7 16. Qg4 f5 17. Qg3 Na5 18. Re3 Rac8 {1-0 (42) Predojevic,B (2621)-Subelj,J (2407) Sarajevo 2019}) 13... Bb7 {[%emt 0:04:10]} 14. Ne5 {[%emt 0:01:20]} Qc7 {[%emt 0:08:27]} 15. Qh5 {[%emt 0:16:10]} Nxe5 {[%emt 0:21:18]} 16. Bxe8 {[%emt 0:01:03]} Qxc3 {[%emt 0:00:12]} 17. Be3 {[%emt 0:04:07]} Nf3+ {[%emt 0:01:54]} 18. gxf3 {[%emt 0:00:37]} Rxe8 {[%emt 0:00:07]} 19. Rec1 {[%emt 0:00:58]} Qb2 {[%emt 0:02:43]} 20. Rab1 {[%emt 0:00:33]} Qe2 {[%emt 0:00:12]} 21. Rc7 $11 {[%emt 0:08:48]} Bd5 {[%emt 0:07:02]} 22. Rbc1 {[%emt 0:03:21]} g6 {[%emt 0:00:11]} 23. Qg4 {[%emt 0:00:13]} Bxa3 {[%emt 0:07:00]} 24. Rc8 {[%emt 0:02:23]} Bxc1 {[%emt 0:00:06]} 25. Rxe8+ {[%emt 0:01:12]} Kg7 {[%emt 0:00:07]} 26. Qf4 {[%emt 0:06:21]} Bxe3 {[%emt 0:00:34]} 27. Qe5+ {[%emt 0:00:04]} Kh6 {[%emt 0:01:13]} 28. Qxe3+ {[%emt 0:00:06]} Qxe3 {[%emt 0:00:10]} 29. fxe3 {[%emt 0:00:04]} Bxf3 {[%emt 0:06:06]} 30. Re7 {[%emt 0:00:06]} Kg7 {[%emt 0:00:22]} 31. Rxa7 {[%emt 0:00:18]} b5 {[%emt 0:00:04]} 32. Ra6 {[%emt 0:01:41]} Bd5 {[%emt 0:01:15]} 33. Rb6 {[%emt 0:00:07]} Bc4 {[%emt 0:00:06]} 34. Kf2 {[%emt 0:05:14]} g5 {[%emt 0:01:08]} 35. e4 {[%emt 0:04:42]} f6 {[%emt 0:02:27]} 36. Kg3 {[%emt 0:01:38]} Kg6 {[%emt 0:04:39]} 37. h4 {[%emt 0:01:31]} gxh4+ {[%emt 0:01:54]} 38. Kxh4 {[%emt 0:00:07]} f5 {[%emt 0:00:14]} 39. d5 {[%emt 0:00:39]} fxe4 {[%emt 0:00:32]} 40. d6 {[%emt 0:00:16]} Kf6 {[%emt 0:00:22]} 41. Rb8 {[%emt 0:00:08]} 1-0

[Event "1st Welsh Masters 2019"]
[Site "Bridgend"]
[Date "2019.08.30"]
[Round "9.5"]
[White "James, Dai"]
[Black "Rudd, Jack"]
[Result "0-1"]
[ECO "B10"]
[WhiteElo "1858"]
[BlackElo "2281"]
[Annotator "ChessBase"]
[PlyCount "58"]
[EventDate "2019.08.26"]
[EventType "tourn"]
[EventCountry "WLS"]
[SourceTitle "playchess.com"]
[Source "ChessBase"]
[SourceQuality "1"]
[TimeControl "5400+30"]

1. e4 {[%emt 0:00:00]} c6 {[%emt 0:00:00]} 2. d3 {[%emt 0:00:55]} d5 {[%emt 0:00:00]} 3. Nd2 {[%emt 0:00:03]} Nf6 {[%emt 0:00:00]} 4. g3 {[%emt 0:00:13]} g6 {[%emt 0:01:03]} 5. Bg2 {[%emt 0:00:54]} Bg7 {[%emt 0:00:06]} 6. Ne2 {[%emt 0:01:41]} O-O {[%emt 0:00:14]} 7. O-O {[%emt 0:00:04]} Na6 {[%emt 0:00:06]} 8. c3 {[%emt 0:05:08]} Nc5 {[%emt 0:00:17]} 9. Qc2 {[%emt 0:00:12]} dxe4 {[%emt 0:00:09]} 10. dxe4 {[%emt 0:03:36]} Qd3 {[%emt 0:00:07]} 11. Qxd3 {[%emt 0:02:45]} Nxd3 {[%emt 0:00:15]} 12. Nf4 {[%emt 0:00:06]} Nxc1 {[%emt 0:00:13]} 13. Raxc1 {[%emt 0:00:14]} e5 {[%emt 0:00:08]} 14. Ne2 {[%emt 0:00:57]} Bh6 {[%emt 0:01:25]} 15. Rcd1 {[%emt 0:00:55]} Bg4 {[%emt 0:00:36]} 16. f3 {[%emt 0:00:56]} Be3+ {[%emt 0:00:22]} 17. Kh1 {[%emt 0:00:06]} Be6 {[%emt 0:00:05]} 18. b3 {[%emt 0:00:28]} b5 {[%emt 0:00:41]} 19. h3 {[%emt 0:04:52]} a5 {[%emt 0:00:14]} 20. f4 {[%emt 0:00:22]} Rfd8 {[%emt 0:02:00]} 21. fxe5 {[%emt 0:02:51]} Nd7 {[%emt 0:00:10]} 22. Nf3 {[%emt 0:09:21]} a4 {[%emt 0:00:08]} 23. Ned4 {[%emt 0:02:29]} axb3 {[%emt 0:00:08]} 24. Nxc6 {[%emt 0:06:37]} bxa2 {[%emt 0:00:32]} 25. Nxd8 {[%emt 0:00:49]} Rxd8 {[%emt 0:00:08]} 26. Nd4 {[%emt 0:00:50]} Bc4 {[%emt 0:00:35]} 27. e6 {[%emt 0:02:40]} fxe6 {[%emt 0:00:15]} 28. Rfe1 {[%emt 0:03:24]} Bf2 {[%emt 0:00:13]} 29. Nc6 {[%emt 0:01:08]} Ra8 {[%emt 1:34:20]} 0-1